[Event "16th Serbian Championship 2022"]
[Site "Bajina Basta"]
[Date "2022.12.08"]
[Round "3.1"]
[White "Ivic, Velimir"]
[Black "Martic, Ivan"]
[Result "1-0"]
[ECO "D16"]
[WhiteElo "2560"]
[BlackElo "2270"]
[Annotator "TA"]
[PlyCount "87"]
[EventDate "2022.12.06"]
[EventType "tourn"]
[EventCountry "SRB"]
[SourceTitle "playchess.com"]
[Source "ChessBase"]
[SourceQuality "1"]
[TimeControl "40/5400+30:1800+30"]

{[%evp 12,87,21,21,15,20,39,14,29,8,2,0,0,0,0,10,11,16,14,12,14,8,140,0,0,0,21,-62,-81,-89,-77,-75,-66,-113,-110,-143,-75,-104,0,0,0,0,0,0,335,322,1151,1089,950,911,1088,328,328,327,324,324,497,504,464,390,384,388,370,390,413,406,505,504,785,728,785,756,756,758,772,773,688,682]} 1. d4 {[%emt 0:00:12]} d5 {[%emt 0:00:12]} 2. c4 {[%emt 0:00:09]} c6 {[%emt 0:00:07][%cal Bc7c6,Bc6c5][%mdl 32]} 3. Nf3 {[%emt 0:00:44]} Nf6 {[%emt 0:00:08]} 4. Nc3 {[%emt 0:01:17]} dxc4 {[%emt 0:00:33]} 5. a4 {[%emt 0:00:19]} e6 {[%emt 0:00:18]} 6. e3 {[%emt 0:01:01]} c5 {[%emt 0:00:17]} 7. Bxc4 {[%emt 0:00:06]} Nc6 {[%emt 0:00:27] D16: Slav Defence: 5 a4: Lines with 5...Bg4 and 5...Na6.} 8. O-O {[%emt 0:00:55]} Be7 {[%emt 0:00:24]} 9. Qe2 {[%emt 0:13:57]} (9. dxc5 $5 {[%cal Rd1d8]} O-O 10. e4 $14) 9... cxd4 {[%emt 0:00:52] The position is equal.} 10. exd4 {[%emt 0:00:11]} O-O {[%emt 0:00:42]} ({Don't play} 10... Nxd4 11. Nxd4 Qxd4 12. Nb5 $16) 11. Be3 {[%emt 0:01:13]} b6 {[%emt 0:07:57]} 12. Rad1 {[%emt 0:02:30]} Nb4 {[%emt 0:00:44] Against d5} 13. Ne5 {[%emt 0:01:38]} Bb7 {[%emt 0:00:20]} 14. f4 {[%emt 0:01:15]} g6 {[%emt 0:08:47] Against f5} 15. f5 {[%emt 0:00:56]} exf5 {[%emt 0:02:56]} 16. Bh6 {[%emt 0:00:18] [#]} Nbd5 $146 {[%emt 0:01:16] [#]} (16... Nfd5 $1 $11 {remains equal.}) ({Predecessor:} 16... Nfd5 17. Bxf8 Bxf8 18. Rfe1 Rc8 19. Bb3 Rc7 20. Qf2 a6 21. Rc1 Bh6 22. Nxd5 Bxd5 23. Rxc7 Qxc7 24. Bxd5 Nxd5 {1-0 (54) Le,Q (2728)-Giri,A (2760) Miami 2022}) 17. Bxf8 {[%emt 0:07:41] White is much more active. The black rooks are badly placed.} (17. g4 $1 $16 {[%cal Rg4f5]}) 17... Bxf8 $11 {[%emt 0:03:21]} 18. Qf3 {[%emt 0:25:21]} Rc8 {[%emt 0:03:24]} 19. h3 {[%emt 0:01:41]} (19. Nxd5 $11 Bxd5 20. Bxd5 Qxd5 21. Qxd5 Nxd5 22. Rc1) 19... Bh6 $1 $15 {[%emt 0:02:44]} 20. Rfe1 {[%emt 0:05:11]} Kg7 {[%emt 0:04:52]} 21. Nxd5 {[%emt 0:04:30]} Nxd5 {[%emt 0:02:25]} 22. Qb3 {[%emt 0:02:58]} (22. Qf2 $15 {should be considered.}) 22... Rc7 $17 {[%emt 0:03:18][%mdl 1024] Black has strong compensation.} 23. Bf1 {[%emt 0:09:29]} Bf4 {[%emt 0:06:11]} (23... Ba8 $142) 24. g3 {[%emt 0:06:49]} Qg5 {[%emt 0:07:31]} ({Black should try} 24... Bh6 $17) 25. Rd3 $11 {[%emt 0:00:18]} Bd2 {[%emt 0:10:17] This pair of bishops is nice.} 26. h4 {[%emt 0:01:17]} Qh6 {[%emt 0:02:05]} 27. Re2 {[%emt 0:00:28]} Bc1 {[%emt 0:00:48][%mdl 8192] Black is now going downhill.} (27... Bf4 $1 $11) 28. Bg2 $18 {[%emt 0:02:23]} Nf6 {[%emt 0:14:11]} (28... Nf4 29. gxf4 Bxg2 30. Kxg2 Qxh4) 29. Rc3 {[%emt 0:01:02]} Re7 {[%emt 0:02:12]} 30. Bxb7 {[%emt 0:00:14]} Rxb7 {[%emt 0:00:15]} 31. Qd1 $2 {[%emt 0:00:48]} (31. Rc8 Re7 32. Qa3) 31... Bf4 {[%emt 0:02:59]} 32. gxf4 {[%emt 0:00:24]} Qxf4 {[%emt 0:00:13]} 33. Qd2 {[%emt 0:03:04]} Qxh4 {[%emt 0:01:53]} (33... Qxd2 {was called for.} 34. Rxd2 Ne4) 34. Rh2 {[%emt 0:00:14]} Ne4 {[%emt 0:00:22]} 35. Rxh4 {[%emt 0:00:26] [#] White wants to mate with Qh6+.} Nxd2 {[%emt 0:00:06]} 36. Rh2 {[%emt 0:00:50][%cal Bh4h2,Bh2c2,Bc2c7,Bc7e7][%mdl 32]} Ne4 {[%emt 0:00:12]} 37. Rc6 {[%emt 0:00:07]} f6 {[%emt 0:01:04]} 38. Nf3 {[%emt 0:00:36]} g5 {[%emt 0:01:30]} 39. Rhc2 {[%emt 0:02:18] White is clearly winning.} f4 {[%emt 0:00:20]} (39... Rb8 $142 40. Rc7+ Kg6 41. Rxa7 h6) 40. Rc7+ {[%emt 0:01:15]} Rxc7 {[%emt 0:00:06]} 41. Rxc7+ {[%emt 0:30:03]} Kg6 {[%emt 0:30:08]} 42. Re7 {[%emt 0:00:28]} Nd6 {[%emt 0:00:52]} 43. d5 {[%emt 0:00:54]} g4 {[%emt 0:00:33]} 44. Nd4 {[%emt 0:00:35] Weighted Error Value: White=0.37/Black=0.43} 1-0

[Event "16th Serbian Championship 2022"]
[Site "Bajina Basta"]
[Date "2022.12.08"]
[Round "3.2"]
[White "Perunovic, Milos"]
[Black "Djordjevic, Vuk"]
[Result "1-0"]
[ECO "C18"]
[WhiteElo "2541"]
[BlackElo "2394"]
[Annotator "TA"]
[PlyCount "93"]
[EventDate "2022.12.06"]
[EventType "tourn"]
[EventCountry "SRB"]
[SourceTitle "playchess.com"]
[Source "ChessBase"]
[SourceQuality "1"]
[TimeControl "40/5400+30:1800+30"]

{[%evp 17,93,36,15,0,0,0,0,0,65,57,54,53,56,37,41,5,7,0,0,8,29,0,4,3,5,-128,-112,-79,-35,-53,-32,-67,-58,-67,0,-10,0,-24,-8,-7,0,0,0,0,32,37,67,63,124,116,112,0,160,154,168,168,252,248,334,295,530,526,763,746,691,639,610,577,1494,1441,1840,1587,1757,1533,1512,1344,2355,2313]} 1. e4 {[%emt 0:00:07]} e6 {[%emt 0:00:19]} 2. d4 {[%emt 0:00:12]} d5 {[%emt 0:00:18]} 3. Nc3 {[%emt 0:00:20]} Bb4 {[%emt 0:00:15]} 4. e5 {[%emt 0:00:23]} c5 {[%emt 0:00:19]} 5. a3 {[%emt 0:00:16]} Bxc3+ {[%emt 0:00:10]} 6. bxc3 {[%emt 0:00:07]} Ne7 {[%emt 0:00:25]} 7. Qg4 {[%emt 0:01:12]} Qc7 {[%emt 0:00:50]} 8. Qxg7 {[%emt 0:01:16]} Rg8 {[%emt 0:00:15]} 9. Qxh7 {[%emt 0:00:08]} cxd4 {[%emt 0:00:39]} 10. Rb1 {[%emt 0:00:32] C18: French: 3 Nc3 Bb4: Main line: 7 h4 and 7 Qg4.} (10. Ne2 {simplifies} Nbc6 11. f4 dxc3 12. Qd3) 10... Qxe5+ {[%emt 0:10:36]} 11. Ne2 {[%emt 0:00:26]} dxc3 {[%emt 0:03:18]} 12. Bf4 {[%emt 0:01:14] [#] The position is equal.} Qh8 $146 {[%emt 0:21:09]} (12... Qf6 $11) ({Predecessor:} 12... Qf6 13. h4 Nbc6 14. Bg5 Qe5 15. Rh3 d4 16. Rf3 f5 17. Qh5+ Ng6 18. Rd3 b6 {1-0 (67) Vokhidov,S (2494)-Pourramezanali,A (2519) Tashkent 2019}) 13. Qxh8 $14 {[%emt 0:08:27] White is much more active. The black rooks are badly placed.} Rxh8 {[%emt 0:00:06]} 14. Nxc3 {[%emt 0:19:51]} Nbc6 {[%emt 0:19:17]} 15. Nb5 {[%emt 0:13:42] [#] Threatens to win with Nc7+.} e5 {[%emt 0:01:41]} 16. Nc7+ {[%emt 0:17:38]} (16. Bg5 $5 {[%cal Rb5c7]} Kd7 17. c4 $14) 16... Kd7 $1 {[%emt 0:03:00][%cal Be8d7,Bd7d6,Bd6c5][%mdl 32]} 17. Bxe5 {[%emt 0:00:20]} Nxe5 {[%emt 0:00:18]} 18. Nxa8 {[%emt 0:00:05]} Kd6 {[%emt 0:08:13]} 19. Be2 {[%emt 0:05:51]} Nc4 {[%emt 0:06:56]} 20. Bxc4 {[%emt 0:05:05]} (20. Rd1 {looks sharper.} Nb2 21. Rd2 Be6 22. c4) 20... dxc4 {[%emt 0:00:06]} 21. Nb6 {[%emt 0:02:14]} axb6 $17 {[%emt 0:00:20]} 22. Rxb6+ {[%emt 0:00:06]} Nc6 {[%emt 0:03:48] Hoping for ...Kc5.} (22... Kc5 $5 {[%cal Rc5b6]} 23. Rb1 Nd5 $15) 23. h4 {[%emt 0:09:50]} Kc5 {[%emt 0:01:24][%mdl 1024] Prevents a4. Black has compensation.} 24. Rb1 {[%emt 0:00:14]} Nd4 {[%emt 0:04:41]} 25. Kd2 {[%emt 0:03:03]} Rg8 {[%emt 0:05:44]} (25... Rd8 $1 $15) 26. c3 {[%emt 0:01:55]} (26. h5 $5 {[%cal Rh5h6]}) 26... Nb5 {[%emt 0:01:32] [#] aiming for ...Rd8+.} 27. Rbc1 {[%emt 0:03:00]} Rd8+ {[%emt 0:00:56]} 28. Ke2 $132 {[%emt 0:00:37][%mdl 2048] White is not holding back} Bf5 {[%emt 0:05:04][%cal Od8d3] Strongly threatening ...Rd3!} 29. a4 {[%emt 0:01:06]} Nd6 {[%emt 0:00:32]} 30. f3 {[%emt 0:01:24]} Ra8 {[%emt 0:02:06]} 31. Ra1 {[%emt 0:00:26]} b5 {[%emt 0:01:06]} 32. axb5 {[%emt 0:00:10]} Re8+ {[%emt 0:00:05]} (32... Rg8 $14) 33. Kf2 $16 {[%emt 0:02:58] Rhe1 is the strong threat.} Nxb5 {[%emt 0:00:08]} 34. g4 {[%emt 0:00:05]} ({White should try} 34. Rae1 $16 Rxe1 35. Rxe1) 34... Be6 $2 {[%emt 0:01:16]} (34... Bd3 $11) 35. Rac1 {[%emt 0:00:49]} Nc7 {[%emt 0:00:33]} 36. h5 {[%emt 0:00:18][%cal Bh4h5,Bh5h6,Bh6h7][%mdl 32]} Bd5 {[%emt 0:00:31]} (36... Kd6 {was worth a try.} 37. h6 Ke7) 37. h6 $18 {[%emt 0:01:59]} Ne6 {[%emt 0:00:03]} 38. Kg3 {[%emt 0:00:32]} Ng5 $2 {[%emt 0:00:51]} (38... Rh8 39. Ra1 Nc7) 39. Rce1 {[%emt 0:00:19] White is clearly winning.} Rf8 {[%emt 0:00:37]} 40. h7 {[%emt 0:01:16]} Rh8 {[%emt 0:00:30]} 41. Rh5 {[%emt 0:30:31]} f6 {[%emt 0:03:27]} 42. f4 {[%emt 0:00:00]} Nf7 {[%emt 0:00:06]} 43. Ra1 {[%emt 0:00:00]} Rd8 {[%emt 0:01:13]} 44. Ra5+ {[%emt 0:00:00]} Kc6 {[%emt 0:00:03]} 45. Ra6+ {[%emt 0:00:00]} Kc5 {[%emt 0:01:12]} 46. Rxf6 {[%emt 0:00:00]} Nh8 {[%emt 0:00:01]} 47. g5 {[%emt 0:00:00] Weighted Error Value: White=0.17 (very precise) /Black=0.40} 1-0

[Event "16th Serbian Championship 2022"]
[Site "Bajina Basta"]
[Date "2022.12.08"]
[Round "3.3"]
[White "Bogosavljevic, Boban"]
[Black "Kovacevic, Aleksandar"]
[Result "0-1"]
[ECO "D02"]
[WhiteElo "2521"]
[BlackElo "2470"]
[Annotator "TA"]
[PlyCount "102"]
[EventDate "2022.12.06"]
[EventType "tourn"]
[EventCountry "SRB"]
[SourceTitle "playchess.com"]
[Source "ChessBase"]
[SourceQuality "1"]
[TimeControl "40/5400+30:1800+30"]

{[%evp 12,102,22,8,35,28,30,12,10,-13,11,8,15,10,6,8,9,17,16,5,52,40,61,28,154,20,40,14,14,17,34,0,0,-9,-8,-10,-13,-15,-14,-6,-8,-15,-18,-33,-25,-56,-54,-65,-61,-71,-72,-72,-73,-72,-72,-75,-79,-71,-52,-103,-112,-106,-105,-113,-104,-156,-154,-150,-147,-155,-140,-179,-177,-241,-226,-213,-227,-256,-259,-966,-1008,-961,-961,-931,-909,-899,-895,-749,-305,-2404,-2162,-1553,-1649]} 1. d4 {[%emt 0:03:37]} Nf6 {[%emt 0:00:18]} 2. Nf3 {[%emt 0:00:07]} e6 {[%emt 0:00:34][%cal Be7e6,Be6e5][%mdl 32]} 3. g3 {[%emt 0:00:06]} c5 {[%emt 0:00:39]} 4. Bg2 {[%emt 0:00:06]} cxd4 {[%emt 0:00:17]} 5. O-O {[%emt 0:00:20]} d5 {[%emt 0:01:07]} 6. Nxd4 {[%emt 0:00:09]} e5 {[%emt 0:00:49]} 7. Nb3 {[%emt 0:00:09]} a5 {[%emt 0:03:12] D02: 1 d4 d5 2 Nf3 sidelines, including 2...Nf6 3 g3 and 2...Nf6 3 Bf4.} (7... Be6 8. c4 Nc6 9. cxd5 Bxd5 10. Bg5 Bxg2 11. Kxg2 Qxd1 12. Rxd1 Ne4 13. Be3 Be7 14. N1d2 Nxd2 15. Rxd2 Rd8 16. Rad1 Rxd2 17. Rxd2 {½-½ (26) Bogosavljevic,B (2516)-Kovacevic,A (2510) Vrbas 2015}) 8. a4 {[%emt 0:00:14]} Be6 {[%emt 0:00:15]} 9. Bg5 {[%emt 0:02:06]} Nbd7 {[%emt 0:00:24] [#] The position is equal.} 10. f4 $146 {[%emt 0:27:29]} ({Predecessor:} 10. Nc3 Be7 11. f4 exf4 12. gxf4 h6 13. Bh4 Nb6 14. e4 dxe4 15. Qxd8+ Bxd8 16. Nxe4 Nxe4 17. Bxd8 Kxd8 18. Bxe4 {½-½ (36) Martin Sanchez,C (2492)-Martin Martin,O (2457) ICCF email 2018}) 10... exf4 {[%emt 0:08:25]} (10... Qb6+ {keeps more tension.} 11. Kh1 Ne4 12. Nc3 Nxc3 13. bxc3 f6) 11. gxf4 {[%emt 0:00:52]} h6 {[%emt 0:01:25] Inhibits f5.} 12. Bh4 {[%emt 0:01:04] Hoping for f5.} Nb6 {[%emt 0:01:00]} 13. Bxf6 {[%emt 0:25:07]} Qxf6 {[%emt 0:01:16]} 14. Nc3 {[%emt 0:00:30]} Bb4 {[%emt 0:13:53]} (14... Qg6 15. Qd4 Bf5 16. Nxd5 Nxd5 17. Qxd5 $16) 15. f5 {[%emt 0:03:18]} (15. Nxd5 Nxd5 16. Bxd5 O-O-O $15) 15... Bxf5 {[%emt 0:18:03]} (15... Bd7 $11) 16. Nb5 $14 {[%emt 0:11:32] Threatens to win with c3.} O-O-O {[%emt 0:12:43]} 17. c3 {[%emt 0:03:18]} Bd6 {[%emt 0:01:21]} (17... Be7 $11 {remains equal.}) 18. N3d4 {[%emt 0:07:22] Pair of Knights!} (18. Nxa5 Bc5+ 19. Kh1 Qg6 $11) (18. e4 $1 $16 dxe4 19. Rxf5 $1 Bxh2+ 20. Kxh2 Qxf5 21. Nd6+ Rxd6 22. Qxd6) 18... g6 $11 {[%emt 0:00:41]} 19. Nxf5 {[%emt 0:02:48]} gxf5 {[%emt 0:00:09]} 20. Qd3 {[%emt 0:00:54]} (20. Bxd5 Bxh2+ $1 {[%mdl 512]} 21. Kg2 Qg5+ 22. Kh1 Qh4 23. Na7+ Kb8) 20... Rhg8 {[%emt 0:06:09]} 21. Kh1 {[%emt 0:01:59]} (21. Rxf5 {with more complications.} Qg6 22. Qh3 Bc5+ 23. Kh1) 21... Rg5 {[%emt 0:12:25]} 22. Rxf5 {[%emt 0:01:53][%mdl 64]} Rxf5 {[%emt 0:00:40]} (22... Qxf5 $2 23. Bh3 $18) 23. Bh3 {[%emt 0:00:05][%mdl 64] [#] Pin} Kb8 $1 {[%emt 0:00:58]} 24. Qxf5 {[%emt 0:00:15]} (24. Bxf5 {is interesting.} Qe5 25. Nxd6 Rxd6 26. Qg3) 24... Qxf5 {[%emt 0:05:46]} 25. Bxf5 {[%emt 0:00:02]} Nc4 {[%emt 0:00:28]} 26. Bc2 {[%emt 0:04:31]} Be5 {[%emt 0:01:17]} 27. Bb3 {[%emt 0:01:47]} Ne3 {[%emt 0:05:21] Prevents Rd1.} 28. Kg1 {[%emt 0:01:20]} Rg8+ {[%emt 0:01:35]} 29. Kf2 {[%emt 0:00:01]} Ng4+ {[%emt 0:00:09]} 30. Ke1 {[%emt 0:00:28]} Bxh2 {[%emt 0:00:17] Black is more active.} (30... Nxh2 31. Kd2 $11) 31. Kd2 {[%emt 0:00:18][%cal Oa1f1]} (31. Bxd5 $2 Nf6 32. Kd2 Nxd5 $19) 31... Bf4+ {[%emt 0:01:10]} 32. Kd3 {[%emt 0:00:02]} Ne3 {[%emt 0:01:22]} 33. Nd4 {[%emt 0:01:29]} Kc7 {[%emt 0:01:16]} 34. Rh1 {[%emt 0:00:11]} Rg3 {[%emt 0:00:29] Inhibits Rh3.} 35. Rh5 {[%emt 0:01:32] White is on the road to losing.} (35. Bxd5 $15 Nxd5+ 36. Ke4) 35... Bg5 $17 {[%emt 0:01:08]} 36. Nf3 {[%emt 0:00:33]} Ng2 {[%emt 0:00:09]} 37. Kc2 {[%emt 0:00:50]} Kd6 {[%emt 0:00:36]} 38. Kb1 {[%emt 0:00:35]} ({White should try} 38. Kd1) 38... Nf4 {[%emt 0:00:21][%csl LRe2,LRh5]} 39. Rh2 {[%emt 0:00:12]} Rg2 {[%emt 0:00:23]} 40. Rxg2 {[%emt 0:00:46]} Nxg2 {[%emt 0:00:02][%mdl 4096] Endgame KBN-KBN} 41. c4 {[%emt 0:04:08]} Nf4 {[%emt 0:08:13]} 42. e3 {[%emt 0:09:09]} (42. Kc2 $142) 42... Ng2 $19 {[%emt 0:00:52]} 43. cxd5 {[%emt 0:00:17]} Nxe3 {[%emt 0:01:11]} 44. Nd2 {[%emt 0:00:29]} f5 {[%emt 0:05:12][%cal Bf7f5,Bf5f4,Bf4f3][%mdl 32]} 45. Nc4+ $2 {[%emt 0:00:30]} (45. Nf3) 45... Nxc4 $1 {[%emt 0:02:39]} ({Weaker is} 45... Kxd5 46. Nxe3+ Ke4 47. Nc4 $16) 46. Bxc4 {[%emt 0:00:02] KB-KB} Ke5 {[%emt 0:08:37]} 47. d6 {[%emt 0:17:27]} f4 {[%emt 0:04:56][%cal Of4f3] ...f3! is the strong threat.} ({Inferior is} 47... Kxd6 48. Kc2 $17) 48. Kc2 {[%emt 0:00:25]} Kd4 {[%emt 0:00:21]} ({And not} 48... Kxd6 49. Be2 $17) 49. Bf7 {[%emt 0:00:28] [#]} Ke3 $1 {[%emt 0:00:20] And now ...f3 would win.} 50. Kd1 $2 {[%emt 0:01:12] [#]} (50. Bd5 f3 51. b4) 50... Kf2 $1 {[%emt 0:00:05] White must now prevent ...f3.} 51. d7 {[%emt 0:00:55]} f3 {[%emt 0:00:05] Weighted Error Value: White=0.41/Black=0.08 (flawless)} 0-1

[Event "16th Serbian Championship 2022"]
[Site "Bajina Basta"]
[Date "2022.12.08"]
[Round "3.4"]
[White "Perunovic, Miodrag"]
[Black "Radovanovic, Nikola"]
[Result "0-1"]
[ECO "C78"]
[WhiteElo "2417"]
[BlackElo "2414"]
[Annotator "TA"]
[PlyCount "114"]
[EventDate "2022.12.06"]
[EventType "tourn"]
[EventCountry "SRB"]
[SourceTitle "playchess.com"]
[Source "ChessBase"]
[SourceQuality "1"]
[TimeControl "40/5400+30:1800+30"]

{[%evp 17,114,29,43,0,0,0,5,0,0,0,0,0,28,0,0,0,0,0,8,14,16,-6,0,0,0,0,0,0,0,0,0,-14,52,0,0,0,0,0,-9,-38,-32,-168,-21,-95,-102,-92,-66,-355,-317,-356,-350,-291,-336,-335,-329,-477,-476,-592,-582,-577,-429,-504,-489,-872,-864,-764,0,-562,0,-836,-835,-796,-632,-766,-625,-539,-638,-781,-774,-2309,-1963,-2550,-2497,-370,-1316,-2193,-1339,-29973,-29974,-29981,-29982,-29982,-29983,-29983,-29984,-29985,-29986,-29988,-29989]} 1. e4 {[%emt 0:00:05]} e5 {[%emt 0:03:21]} 2. Nf3 {[%emt 0:00:12]} Nc6 {[%emt 0:00:05]} 3. Bb5 {[%emt 0:01:36]} a6 {[%emt 0:00:21]} 4. Ba4 {[%emt 0:00:10]} Nf6 {[%emt 0:00:28]} 5. O-O {[%emt 0:00:40]} b5 {[%emt 0:01:08]} 6. Bb3 {[%emt 0:00:03]} Bc5 {[%emt 0:00:15]} 7. a4 {[%emt 0:04:57]} Rb8 {[%emt 0:00:42]} 8. c3 {[%emt 0:00:08]} d6 {[%emt 0:00:34]} 9. d4 {[%emt 0:00:02]} Bb6 {[%emt 0:00:31]} 10. a5 {[%emt 0:00:01] C78: Ruy Lopez: Archangelsk and Möller Defences.} Ba7 {[%emt 0:00:28]} (10... Bxa5 $2 11. dxe5 (11. d5 Ne7 $18) 11... dxe5 12. Qxd8+ Kxd8 13. Bd5 (13. Bxf7 Bb6 $16) 13... Nxd5 14. exd5 $18) 11. h3 {[%emt 0:05:46]} O-O {[%emt 0:01:44]} 12. Re1 {[%emt 0:05:35] The position is equal.} h6 {[%emt 0:02:53]} 13. Be3 {[%emt 0:02:13]} Ra8 {[%emt 0:00:51]} 14. Nbd2 {[%emt 0:01:37]} Re8 {[%emt 0:01:21]} 15. Bc2 {[%emt 0:16:19]} exd4 {[%emt 0:12:52]} 16. cxd4 {[%emt 0:07:37]} Nb4 {[%emt 0:00:56]} 17. Bb1 {[%emt 0:00:21]} c5 {[%emt 0:06:58]} 18. d5 {[%emt 0:00:47] [#]} Bb8 $146 {[%emt 0:16:44]} ({Predecessor:} 18... Nd7 19. Nf1 Qf6 20. Qd2 Ne5 21. Nxe5 Qxe5 22. Ng3 Bd7 23. Ra3 Bb8 24. Bf4 Qe7 25. Nh5 Qh4 26. Nxg7 Kxg7 27. Rg3+ Kh8 28. Bxh6 Rg8 29. Qc3+ f6 30. Bg5 {1-0 (30) Martinez Alcantara,J (2620)-Moroni,L (2575) Chess.com INT 2021}) 19. Qc1 {[%emt 0:06:37]} Ra7 {[%emt 0:07:18]} 20. Nf1 {[%emt 0:10:41]} Nxe4 {[%emt 0:02:05] White must now prevent ...f5.} 21. Bxh6 $1 {[%emt 0:00:08][%mdl 64]} f5 {[%emt 0:10:16] Active counter play!} 22. Bg5 {[%emt 0:01:29]} Nxg5 {[%emt 0:01:28]} 23. Rxe8+ {[%emt 0:11:25]} Qxe8 {[%emt 0:00:07]} 24. Qxg5 {[%emt 0:00:04]} g6 {[%emt 0:09:39]} (24... Nxd5 25. Bxf5 Bxf5 26. Qxf5 $14) ({Better is} 24... Qe7 $11) 25. Ng3 {[%emt 0:07:38]} (25. Ra3 $1 $14 Nxd5 26. Ne3) 25... Rg7 $36 {[%emt 0:01:12][%mdl 2048] Black is more active.} (25... Nxd5 $2 26. Bxf5 Qe7 27. Qxg6+ Qg7 28. Qxg7+ Kxg7 29. Bxc8 $18) 26. h4 {[%emt 0:00:43]} Bc7 {[%emt 0:07:00]} 27. h5 {[%emt 0:00:39]} gxh5 {[%emt 0:02:13]} (27... Nxd5 $2 28. h6 Bd8 29. Qd2 $16) 28. Qd2 {[%emt 0:01:16]} (28. Qc1 {simplifies} Qg6 29. Nh4 Qg5 30. Bxf5 Bxf5 31. Nhxf5 Qxc1+ 32. Rxc1 Rd7 33. Rd1) 28... Qg6 {[%emt 0:03:14]} 29. Ra3 {[%emt 0:00:01] [#]} (29. Nh4 $15 Qg5 30. Qxg5 Rxg5 31. Ngxf5 Bxf5 32. Bxf5) 29... Bd7 {[%emt 0:03:40]} (29... Bd8 $1 $19 {aiming for ...h4.} 30. Qf4 Nxd5) 30. Bxf5 {[%emt 0:07:56]} Bxf5 $17 {[%emt 0:00:21]} 31. Nh4 {[%emt 0:00:01][%csl LRf5,LRg6]} Qg5 {[%emt 0:00:49]} 32. f4 $2 {[%emt 0:01:32][%mdl 8192]} ({White has to play} 32. Qxg5 $15 Rxg5 33. Ngxf5) 32... Qxh4 $19 {[%emt 0:01:03]} 33. Nxf5 {[%emt 0:00:14]} Qf6 {[%emt 0:01:30]} 34. Nxg7 {[%emt 0:00:03]} Kxg7 {[%emt 0:00:41]} (34... Qxg7 35. Qe1 Kf8 36. Qe6 Qd4+ 37. Re3 Nxd5 38. Qh6+ Kg8 39. Qg6+ Kh8 40. Qh6+ Kg8 41. Qg6+ Kh8 42. Qh6+ Kg8 $11) 35. Rg3+ {[%emt 0:01:09] [#]} Kf8 $1 {[%emt 0:00:38]} 36. Kh2 {[%emt 0:05:00]} (36. Rh3 $142) 36... Bd8 {[%emt 0:00:13]} (36... Bxa5 $2 37. Qe2 Nxd5 38. Qxh5 $19) 37. f5 {[%emt 0:00:40]} Qh4+ {[%emt 0:01:05]} ({Much less strong is} 37... Qxf5 38. Rf3 $18) 38. Rh3 {[%emt 0:00:01]} Bg5 {[%emt 0:00:53] Prevents Qh6+.} 39. Qe2 {[%emt 0:01:33]} Qf4+ {[%emt 0:00:22]} 40. Kh1 {[%emt 0:01:09]} (40. g3 $142 Qxf5 41. Rxh5) 40... Qc1+ {[%emt 0:00:11]} ({Inferior is} 40... Qxf5 41. Rf3 Bf4 42. g3 Nxd5 43. Kh2 $17) 41. Kh2 {[%emt 0:30:02]} Qf4+ {[%emt 0:30:15]} 42. Kh1 $1 {[%emt 0:00:00]} Qc1+ {[%emt 0:00:00]} ({Weaker is} 42... Qxf5 43. Rf3 Bf4 44. g3 Nxd5 45. gxf4 $15) 43. Kh2 {[%emt 0:00:00]} Bf4+ {[%emt 0:00:00]} 44. g3 {[%emt 0:00:00]} Qd2 {[%emt 0:00:00]} 45. Qxd2 {[%emt 0:00:00]} Bxd2 {[%emt 0:00:00]} 46. Rxh5 {[%emt 0:00:00]} c4 {[%emt 0:00:00][%cal Od2c1] Strongly threatening ...Bc1!} 47. g4 {[%emt 0:00:00]} Bc1 {[%emt 0:00:00]} 48. f6 {[%emt 0:00:00]} Bxb2 {[%emt 0:00:00]} 49. g5 {[%emt 0:00:00]} Nxd5 {[%emt 0:00:00]} 50. Rh8+ {[%emt 0:00:00]} Kf7 {[%emt 0:00:00] And now ...c3 would win.} 51. Rh7+ {[%emt 0:00:00]} Ke6 {[%emt 0:00:00] ( -> ...c3)} 52. f7 {[%emt 0:00:00]} Ke7 {[%emt 0:00:00] Black mates.} 53. g6 {[%emt 0:00:00]} Be5+ {[%emt 0:00:00]} 54. Kg1 {[%emt 0:00:00]} c3 {[%emt 0:00:00][%cal Bc4c3,Bc3c2][%mdl 32]} 55. Kf2 {[%emt 0:00:00]} c2 {[%emt 0:00:00]} 56. Rh1 {[%emt 0:00:00]} b4 {[%emt 0:00:00][%cal Bb5b4,Bb4b3][%mdl 32]} 57. Re1 {[%emt 0:00:00]} b3 {[%emt 0:00:00] Weighted Error Value: White=0.83/Black=0.52} 0-1